[Event "45th FIDE Olympiad 2024"]
[Site "Budapest"]
[Date "2024.09.14"]
[Round "4.34"]
[White "Haring, Filip"]
[Black "Christiansen, Johan-Sebastian"]
[Result "0-1"]
[ECO "C13"]
[WhiteElo "2503"]
[BlackElo "2661"]
[Annotator "RC"]
[PlyCount "116"]
[EventDate "2024.09.05"]
[EventType "team-tourn"]
[EventCountry "HUN"]
[SourceTitle "playchess.com"]
[Source "ChessBase"]
[SourceQuality "1"]
[WhiteTeam "Slovakia"]
[BlackTeam "Norway"]
[WhiteTeamCountry "SVK"]
[BlackTeamCountry "NOR"]
[TimeControl "40/5400+30:1800+30"]

1. e4 {[%emt 0:00:05]} e6 {[%emt 0:00:39]} 2. d4 {[%emt 0:00:21]} d5 {[%emt 0:00:11]} 3. Nc3 {[%emt 0:00:41]} Nf6 {[%emt 0:00:45]} 4. Bg5 {[%emt 0:01:02]} dxe4 {[%emt 0:00:42]} 5. Nxe4 {[%emt 0:00:16]} Be7 {[%emt 0:00:02]} 6. Bxf6 {[%emt 0:00:42]} gxf6 {[%emt 0:00:07]} 7. Nc3 {[%emt 0:01:00]} Nd7 {[%emt 0:01:07]} 8. g3 {[%emt 0:04:09]} c6 {[%emt 0:08:00]} 9. Bg2 {[%emt 0:04:08]} Qa5 {[%emt 0:03:43]} 10. Nge2 {[%emt 0:02:11]} Nf8 {[%emt 0:02:20]} 11. a3 {[%emt 0:04:07]} Ng6 {[%emt 0:00:10]} 12. Qd3 {[%emt 0:03:10]} Bd7 {[%emt 0:03:20]} 13. h4 {[%emt 0:08:25]} h5 {[%emt 0:03:03]} 14. Nc1 {[%emt 0:04:06]} Qc7 {[%emt 0:02:35]} 15. Nb3 {[%emt 0:05:41]} b6 {[%emt 0:12:14]} 16. Qe2 {[%emt 0:04:46]} Rd8 {[%emt 0:09:17]} 17. O-O-O {[%emt 0:03:56]} a5 {[%emt 0:19:44]} 18. Kb1 {[%emt 0:04:24]} a4 {[%emt 0:00:41]} 19. Nc1 {[%emt 0:00:55]} b5 {[%emt 0:09:02]} 20. Nd3 {[%emt 0:01:12]} Kf8 {[%emt 0:04:12]} 21. f4 {[%emt 0:03:31]} Be8 {[%emt 0:01:46]} 22. Qe3 {[%emt 0:05:44]} f5 {[%emt 0:01:51]} 23. Bf3 {[%emt 0:01:25]} Qb6 {[%emt 0:01:28]} 24. Ne2 {[%emt 0:02:59]} Bf6 {[%emt 0:01:34]} 25. Nc5 {[%emt 0:02:50]} Kg7 {[%emt 0:01:39]} 26. c3 {[%emt 0:01:00]} Ne7 {[%emt 0:00:01]} 27. Nc1 {[%emt 0:01:00]} Ng8 {[%emt 0:07:32]} 28. Qe2 {[%emt 0:03:51]} Kg6 {[%emt 0:00:06]} 29. N1d3 {[%emt 0:01:50]} Be7 {[%emt 0:02:13]} 30. Ne5+ {[%emt 0:12:08]} Kg7 {[%emt 0:00:02]} 31. Bxh5 {[%emt 0:00:33]} Bxc5 {[%emt 0:02:12]} 32. dxc5 {[%emt 0:00:06]} Rxd1+ {[%emt 0:00:02]} 33. Rxd1 {[%emt 0:01:04]} Qxc5 {[%emt 0:00:01]} 34. Bf3 {[%emt 0:01:14]} Nf6 {[%emt 0:00:10]} 35. Qg2 {[%emt 0:02:33]} Qe3 {[%emt 0:02:39]} 36. Rd3 {[%emt 0:03:10]} Qe1+ {[%emt 0:00:20]} 37. Ka2 {[%emt 0:01:09]} c5 {[%emt 0:00:54]} 38. Be2 {[%emt 0:02:54]} Qc1 {[%emt 0:00:02]} 39. Rd1 {[%emt 0:03:02]} Qc2 {[%emt 0:00:22]} 40. Bf3 {[%emt 0:00:40]} Qxg2 {[%emt 0:01:03]} 41. Bxg2 {[%emt 0:30:02]} Rg8 {[%emt 0:05:57]} 42. Rd6 {[%emt 0:00:00]} Kf8 {[%emt 0:09:06]} 43. Bc6 {[%emt 0:00:00]} Ke7 {[%emt 0:02:31]} 44. Rd3 {[%emt 0:00:00]} c4 {[%emt 0:00:53]} 45. Rf3 {[%emt 0:00:00]} Ng4 {[%emt 0:08:35]} 46. Bxe8 {[%emt 0:00:00]} Nxe5 {[%emt 0:00:04]} 47. fxe5 {[%emt 0:00:00]} Kxe8 {[%emt 0:00:12]} 48. Kb1 {[%emt 0:00:00]} Rg4 {[%emt 0:00:27]} 49. Kc2 {[%emt 0:03:38]} Kd7 {[%emt 0:03:39]} 50. Kd2 {[%emt 0:00:41]} Kc6 {[%emt 0:00:02]} 51. h5 {[%emt 0:03:03]} Kd5 {[%emt 0:01:09]} 52. h6 {[%emt 0:00:25]} Rg6 {[%emt 0:00:30]} 53. h7 {[%emt 0:00:08]} Rh6 {[%emt 0:00:00]} 54. g4 {[%emt 0:00:10]} Rxh7 {[%emt 0:03:37]} 55. gxf5 {[%emt 0:00:05]} Ke4 {[%emt 0:00:36]} 56. Rf2 {[%emt 0:00:26]} exf5 {[%emt 0:00:17]} 57. Re2+ {[%emt 0:00:13]} Kf3 {[%emt 0:00:10]} 58. Re3+ {[%emt 0:01:01]} Kg4 {[%emt 0:00:35]} 0-1

[Event "45th FIDE Olympiad 2024"]
[Site "Budapest"]
[Date "2024.09.14"]
[Round "4.34"]
[White "Prasad, Rudr"]
[Black "Yee, Soon Wei"]
[Result "0-1"]
[ECO "D94"]
[WhiteElo "1777"]
[BlackElo "2219"]
[PlyCount "94"]
[EventDate "2024.09.05"]
[EventType "team-tourn"]
[EventCountry "HUN"]
[WhiteTeam "Fiji"]
[BlackTeam "Brunei Darussalam"]
[WhiteTeamCountry "FIJ"]
[BlackTeamCountry "BRN"]
[TimeControl "40/5400+30:1800+30"]

1. d4 Nf6 2. c4 g6 3. Nc3 d5 4. Nf3 Bg7 5. e3 O-O 6. cxd5 Nxd5 7. Bc4 Nxc3 8. bxc3 c5 9. O-O Nc6 10. Ba3 cxd4 11. cxd4 Na5 12. Bd3 Be6 13. Qe2 a6 14. Rfc1 b5 15. Nd2 Bd5 16. Bc5 Re8 17. e4 Be6 18. Qe3 Nb7 19. e5 Qd7 20. Be4 Rac8 21. Nb3 Bd5 22. Rc2 f6 23. f4 Rc6 24. a4 bxa4 25. Bxd5+ Qxd5 26. Rxa4 fxe5 27. fxe5 Bxe5 28. Rb4 Re6 29. dxe5 Qd1+ 30. Kf2 Qxc2+ 31. Kg3 Rd8 32. Bd4 Qc6 33. Bb6 Rd5 34. Nd4 Qd7 35. Nf3 Nd8 36. Bxd8 Qxd8 37. Qb3 Kg7 38. Rd4 Rexe5 39. Nxe5 Rxd4 40. Qf7+ Kh8 41. Qf2 Kg7 42. Qf7+ Kh6 43. Qf2 Qd6 44. Qe3+ Kg7 45. Kf2 Rd2+ 46. Kf1 Qd4 47. Qg3 Qa1+ {0-} 0-1

[Event "45th FIDE Olympiad 2024"]
[Site "Budapest"]
[Date "2024.09.14"]
[Round "4.35"]
[White "Tari, Aryan"]
[Black "Sahidi, Samir"]
[Result "1/2-1/2"]
[ECO "C54"]
[WhiteElo "2642"]
[BlackElo "2474"]
[Annotator "TA"]
[PlyCount "64"]
[EventDate "2024.09.05"]
[EventType "team-tourn"]
[EventCountry "HUN"]
[SourceTitle "playchess.com"]
[Source "ChessBase"]
[SourceQuality "1"]
[WhiteTeam "Norway"]
[BlackTeam "Slovakia"]
[WhiteTeamCountry "NOR"]
[BlackTeamCountry "SVK"]
[TimeControl "40/5400+30:1800+30"]

{[%evp 11,64,9,20,20,20,24,24,3,0,4,6,11,0,4,2,12,46,54,68,50,63,8,14,0,0,17,27,33,33,13,41,26,43,8,97,0,0,0,0,0,0,0,0,0,0,0,0,0,0,0,0,0,0,0,0]} 1. e4 {[%emt 0:00:02]} e5 {[%emt 0:00:16]} 2. Nf3 {[%emt 0:00:12]} Nc6 {[%emt 0:00:11]} 3. Bc4 {[%emt 0:00:07]} Nf6 {[%emt 0:00:17]} 4. d3 {[%emt 0:00:10]} Bc5 {[%emt 0:00:37]} 5. O-O {[%emt 0:00:29]} d6 {[%emt 0:01:35]} 6. c3 {[%emt 0:00:23]} a6 {[%emt 0:01:15]} 7. Re1 {[%emt 0:00:56]} Ba7 {[%emt 0:01:35]} 8. Nbd2 {[%emt 0:00:18]} O-O {[%emt 0:03:34]} 9. Nf1 {[%emt 0:01:00] White has an edge.} Na5 {[%emt 0:03:07]} 10. Bb3 {[%emt 0:00:20]} Nxb3 {[%emt 0:01:33]} 11. axb3 {[%emt 0:00:02]} h6 {[%emt 0:06:28]} 12. Ng3 {[%emt 0:03:07]} Re8 {[%emt 0:01:25]} 13. h3 {[%emt 0:01:11]} d5 {[%emt 0:06:26]} 14. exd5 $1 {[%emt 0:03:33]} Qxd5 {[%emt 0:00:11]} 15. Be3 $1 {[%emt 0:14:31]} c5 {[%emt 0:03:27]} 16. c4 {[%emt 0:04:30]} (16. Ra4 $14) 16... Qd6 $11 {[%emt 0:02:38]} 17. Nh4 {[%emt 0:13:21]} Qc6 {[%emt 0:14:18]} 18. Bd2 {[%emt 0:05:07]} b6 {[%emt 0:06:18]} 19. Bc3 {[%emt 0:11:38]} Bb8 {[%emt 0:00:31]} 20. Re3 {[%emt 0:00:20]} Bc7 {[%emt 0:06:52]} 21. Qe2 {[%emt 0:05:29][%cal Rc3e5]} Bb7 {[%emt 0:03:12]} 22. Ngf5 {[%emt 0:04:29][%cal Oe3g3] [#] Strongly threatening Rg3!} e4 {[%emt 0:04:33]} (22... Kh7 $11) 23. d4 {[%emt 0:06:56] White is more active.} (23. Rd1 $16) 23... cxd4 {[%emt 0:00:52] The position is equal.} 24. Nxd4 {[%emt 0:00:11]} Qd6 {[%emt 0:01:46]} 25. Rg3 {[%emt 0:01:17]} Qf8 {[%emt 0:01:38]} 26. Ndf5 {[%emt 0:04:55][%csl LRf6,LRg7,LRh6]} Bxg3 {[%emt 0:01:09]} 27. fxg3 {[%emt 0:01:59]} Re6 {[%emt 0:00:56]} 28. Rf1 {[%emt 0:01:37][%cal Of5h6] Threatens to win with Nxh6+!} Ne8 {[%emt 0:08:43][%cal Oe4e3]} 29. Nd4 $1 {[%emt 0:00:58]} Rf6 {[%emt 0:04:32]} 30. Ndf5 {[%emt 0:00:28]} Re6 {[%emt 0:00:32][%cal Oe4e3]} 31. Nd4 {[%emt 0:08:17]} Rf6 {[%emt 0:00:32]} 32. Ndf5 {[%emt 0:05:14]} Re6 {[%emt 0:00:08] Weighted Error Value: White=0.11 (very precise) /Black=0.09 (flawless) .  Mistake:       	White=2     	Black=1      Inaccurate:     	White=1     	Black=2      OK:         	White=11    	Black=16     Best:        	White=2     	Black=2      Strong:       	White=3     	---} 1/2-1/2

[Event "45th FIDE Olympiad 2024"]
[Site "Budapest"]
[Date "2024.09.14"]
[Round "4.35"]
[White "Pg. Shahridin, Ak. Abdul Wafie"]
[Black "Terubea, Ronald"]
[Result "0-1"]
[ECO "A22"]
[WhiteElo "1912"]
[BlackElo "1836"]
[PlyCount "110"]
[EventDate "2024.09.05"]
[EventType "team-tourn"]
[EventCountry "HUN"]
[WhiteTeam "Brunei Darussalam"]
[BlackTeam "Fiji"]
[WhiteTeamCountry "BRN"]
[BlackTeamCountry "FIJ"]
[TimeControl "40/5400+30:1800+30"]

1. c4 e5 2. Nc3 Nf6 3. e4 Bc5 4. g3 d6 5. h3 Nc6 6. Bg2 Bd7 7. Nge2 h6 8. O-O O-O 9. d3 Nh7 10. Be3 Nd4 11. Bxd4 Bxd4 12. Nxd4 exd4 13. Ne2 c5 14. b4 b6 15. b5 Rc8 16. Qd2 f5 17. Nf4 g5 18. Nd5 f4 19. Qe2 Nf6 20. e5 Re8 21. Nxf6+ Qxf6 22. exf6 Rxe2 23. Bf3 Re5 24. Bh5 Rf8 25. f7+ Kg7 26. Rae1 Be6 27. gxf4 gxf4 28. Rxe5 dxe5 29. Kg2 Kf6 30. Kf3 Bf5 31. Rd1 Kg5 32. Bg4 Rxf7 33. Rg1 Bxd3 34. Be6+ Kf6 35. Bxf7 Kxf7 36. h4 Bg6 37. h5 Bxh5+ 38. Ke4 Kf6 39. Kd3 Bg6+ 40. Kd2 e4 41. a4 e3+ 42. fxe3 fxe3+ 43. Ke2 Kf5 44. a5 bxa5 45. Rh1 h5 46. Kf3 Ke5 47. Rg1 Be4+ 48. Ke2 Kf4 49. Rf1+ Kg3 50. Rf7 h4 51. Rg7+ Kf4 52. Rf7+ Bf5 53. Rxa7 d3+ 54. Kf1 d2 55. Ke2 Bg4+ {0-} 0-1

[Event "45th FIDE Olympiad 2024"]
[Site "Budapest"]
[Date "2024.09.14"]
[Round "4.36"]
[White "Druska, Juraj"]
[Black "Urkedal, Frode Olav Olsen"]
[Result "1/2-1/2"]
[ECO "E51"]
[WhiteElo "2441"]
[BlackElo "2546"]
[Annotator "TA"]
[PlyCount "103"]
[EventDate "2024.09.05"]
[EventType "team-tourn"]
[EventCountry "HUN"]
[SourceTitle "playchess.com"]
[Source "ChessBase"]
[SourceQuality "1"]
[WhiteTeam "Slovakia"]
[BlackTeam "Norway"]
[WhiteTeamCountry "SVK"]
[BlackTeamCountry "NOR"]
[TimeControl "40/5400+30:1800+30"]

{[%evp 12,103,2,0,-2,0,4,0,0,0,0,0,0,-8,0,0,6,4,0,17,0,-14,0,0,0,-50,-13,-8,-18,-26,-25,-20,-42,-75,-3,-3,0,0,-2,-18,-23,-15,-7,-18,-20,-58,-51,-51,-45,-54,-24,-31,-13,-36,-29,-29,-38,-31,0,-44,-45,-164,-79,-80,-70,-80,-81,-81,-81,-81,-81,-80,-80,-80,-79,-79,-80,-80,-79,-79,-58,-58,-55,-58,-18,-22,0,0,0,0,0,0,0,0]} 1. d4 {[%emt 0:00:13]} Nf6 {[%emt 0:00:08]} 2. c4 {[%emt 0:00:08]} e6 {[%emt 0:00:04]} 3. Nc3 {[%emt 0:00:17]} Bb4 {[%emt 0:00:10]} 4. e3 {[%emt 0:00:09]} O-O {[%emt 0:00:31]} 5. Bd2 {[%emt 0:00:12]} d5 {[%emt 0:00:41]} 6. Nf3 {[%emt 0:00:21]} Nbd7 {[%emt 0:01:27]} 7. a3 {[%emt 0:00:20]} Be7 {[%emt 0:01:31]} 8. cxd5 {[%emt 0:00:17]} exd5 {[%emt 0:00:07]} 9. Bd3 {[%emt 0:00:36]} Bd6 {[%emt 0:07:52]} 10. Qc2 {[%emt 0:15:30]} c5 {[%emt 0:06:43]} 11. dxc5 {[%emt 0:08:00]} Nxc5 {[%emt 0:00:07]} 12. Bf5 {[%emt 0:32:30]} Nfe4 {[%emt 0:17:26]} 13. Bxc8 {[%emt 0:02:41]} Rxc8 {[%emt 0:00:11]} 14. O-O {[%emt 0:00:38]} Nxd2 {[%emt 0:07:35]} 15. Nxd2 {[%emt 0:00:49][%cal Oc2f5]} Be5 {[%emt 0:09:55]} 16. Rac1 {[%emt 0:21:23]} d4 {[%emt 0:04:08]} 17. exd4 {[%emt 0:00:51]} Bxd4 {[%emt 0:00:09]} 18. Ndb1 {[%emt 0:12:28]} (18. Rcd1 $11 Bxc3 19. Qxc3) 18... Rc6 {[%emt 0:06:38]} 19. Rcd1 {[%emt 0:00:29]} Ne6 {[%emt 0:02:36]} 20. Rd2 {[%emt 0:00:56]} Qg5 {[%emt 0:04:47]} 21. Rfd1 {[%emt 0:00:21]} Bb6 {[%emt 0:03:59]} 22. Qe4 {[%emt 0:01:14]} Nc5 {[%emt 0:02:27]} ({Black should try} 22... Nf4 $1 $17 {[%cal Oc6c4] White must now prevent ...Rc4!} 23. Kf1 Re6) 23. Qd5 $11 {[%emt 0:00:19]} Qg6 {[%emt 0:00:40]} 24. h4 {[%emt 0:00:53]} h5 {[%emt 0:02:53]} 25. Qg5 {[%emt 0:00:41]} Qxg5 {[%emt 0:02:03]} 26. hxg5 {[%emt 0:00:00]} Re8 {[%emt 0:00:47]} 27. Rd5 {[%emt 0:00:43]} Ne6 {[%emt 0:03:28]} 28. g3 {[%emt 0:00:36] [#]} h4 $1 {[%emt 0:01:41]} 29. Kg2 {[%emt 0:00:47]} hxg3 {[%emt 0:02:14]} 30. fxg3 {[%emt 0:00:16]} Bd8 {[%emt 0:03:34]} 31. Rd7 {[%emt 0:00:10]} Rb6 {[%emt 0:00:43]} 32. Na4 {[%emt 0:00:47]} Rb5 {[%emt 0:00:23]} 33. g6 {[%emt 0:00:14]} fxg6 {[%emt 0:00:07]} 34. b4 {[%emt 0:00:40]} Rg5 {[%emt 0:03:51] And now ...Bc7 would win.} 35. Nc5 {[%emt 0:00:18] aiming for Nxe6.} Bb6 {[%emt 0:01:02]} 36. Rxb7 {[%emt 0:00:41] [#]} (36. Nxe6 $15 Rxe6 37. R1d3) 36... Nxc5 {[%emt 0:02:17]} (36... Nf4+ $1 $19 {is more deadly.} 37. Kf2 Nd5 (37... Bxc5+ 38. bxc5 Nh3+ 39. Kg2 $11)) 37. bxc5 $17 {[%emt 0:00:01]} Bxc5 {[%emt 0:00:51]} 38. Rdd7 {[%emt 0:00:25]} Re2+ {[%emt 0:00:49]} 39. Kh3 {[%emt 0:00:15]} Re3 {[%emt 0:02:22][%csl LRa3,LRg3]} 40. Rxg7+ {[%emt 0:00:40]} Kf8 {[%emt 0:00:08]} 41. Rh7 {[%emt 0:07:17][%cal Rh7h8]} Rexg3+ {[%emt 0:03:01]} 42. Kh2 {[%emt 0:00:01][%cal Rh7h8]} Rg2+ {[%emt 0:00:20]} (42... Bxa3 43. Rh8#) 43. Kh3 {[%emt 0:00:06][%cal Rh7h8]} R5g3+ {[%emt 0:01:01]} 44. Kh4 {[%emt 0:00:07][%cal Rh7h8] [#]} g5+ $1 {[%emt 0:00:33]} (44... Bxa3 45. Rh8#) 45. Kh5 {[%emt 0:00:02][%cal Rb7b8]} Rh3+ {[%emt 0:08:00]} (45... Bxa3 46. Rh8#) 46. Kg6 {[%emt 0:00:02][%cal Rb7b8]} Rxh7 {[%emt 0:00:06]} 47. Rxh7 $15 {[%emt 0:00:17] KRB-KRN} g4 {[%emt 0:00:33] Strongly threatening ...g3.} 48. Nc3 {[%emt 0:02:14] The position is equal.} g3 {[%emt 0:01:39]} 49. Nd5 $1 {[%emt 0:03:41][%cal Rh7h8]} Rh2 {[%emt 0:04:37] ( -> ...Rxh7)} ({Inferior is} 49... Bxa3 50. Rh8#) (49... Bd4 $5 50. Rf7+ $8 Ke8 51. Nc7+ Kd8 52. Ne6+ Kc8 53. Nxd4 Rb2 $18) 50. Rf7+ {[%emt 0:02:13]} (50. Rc7 $5 Rh6+ $8 51. Kxh6 $11) 50... Ke8 $1 {[%emt 0:01:36][%cal Og3g2] ...g2! would now be deadly.} (50... Kg8 51. Rg7+ Kh8 52. Ne7 (52. Nf6 $2 Rh6+ 53. Kxh6 Bf8 $19) 52... Bxe7 53. Rxe7) 51. Nc7+ {[%emt 0:00:07]} Kd8 {[%emt 0:00:03]} 52. Ne6+ {[%emt 0:00:05] Weighted Error Value: White=0.11 (very precise) /Black=0.10 (very precise) .  Mistake:       	White=2     	Black=2      Inaccurate:     	White=3     	Black=4      OK:         	White=11    	Black=13     Best:        	White=8     	Black=5      Strong:       	White=1     	Black=2      Brilliant:      	---       	Black=1} 1/2-1/2

[Event "45th FIDE Olympiad 2024"]
[Site "Budapest"]
[Date "2024.09.14"]
[Round "4.36"]
[White "Maharaj, Yash Krishen"]
[Black "Akmal, Ahmad"]
[Result "0-1"]
[ECO "B48"]
[WhiteElo "1847"]
[BlackElo "1830"]
[PlyCount "58"]
[EventDate "2024.09.05"]
[EventType "team-tourn"]
[EventCountry "HUN"]
[WhiteTeam "Fiji"]
[BlackTeam "Brunei Darussalam"]
[WhiteTeamCountry "FIJ"]
[TimeControl "40/5400+30:1800+30"]

1. e4 c5 2. Nf3 e6 3. d4 cxd4 4. Nxd4 Nc6 5. Nc3 Qc7 6. Be3 a6 7. a3 b5 8. Nxc6 Qxc6 9. Bd3 Nf6 10. Qd2 Be7 11. O-O-O O-O 12. h3 b4 13. axb4 Bxb4 14. g4 d6 15. f4 Bb7 16. Rhg1 Rac8 17. Bd4 Nd7 18. e5 dxe5 19. fxe5 Rfd8 20. Qf2 Qc7 21. Qh4 Nf8 22. Ne4 Rxd4 23. Nf6+ gxf6 24. exf6 Rxd3 25. Qg5+ Ng6 26. c3 Rxc3+ 27. Kb1 Be4+ 28. Ka1 Ra3+ 29. bxa3 Qc3+ {0-} 0-1